[Event "45th FIDE Olympiad 2024"]
[Site "Budapest"]
[Date "2024.09.14"]
[Round "4.4"]
[White "Pitamber, Sachin Dhilan"]
[Black "Miswadah, Baha"]
[Result "0-1"]
[ECO "B34"]
[WhiteElo "1715"]
[BlackElo "1957"]
[PlyCount "106"]
[EventDate "2024.09.05"]
[EventType "team-tourn"]
[EventCountry "HUN"]
[WhiteTeam "Guyana"]
[BlackTeam "Palestine"]
[WhiteTeamCountry "GUY"]
[BlackTeamCountry "PLE"]
[TimeControl "40/5400+30:1800+30"]

1. e4 c5 2. Nc3 g6 3. Nf3 Bg7 4. d4 cxd4 5. Nxd4 Nc6 6. Be3 Nf6 7. Be2 O-O 8. Qd2 d5 9. Nxc6 bxc6 10. Rd1 Bb7 11. e5 Nd7 12. h4 Nxe5 13. h5 Nd7 14. hxg6 fxg6 15. Bh6 Rf7 16. Bg4 Nf8 17. Bxg7 Rxg7 18. Ne4 Qb6 19. Ng5 Qxb2 20. Be6+ Nxe6 21. Nxe6 Rf7 22. Qe3 Rf5 23. Nd4 Rf7 24. Qe6 Qb4+ 25. Kf1 Qd6 26. Rb1 Ba6+ 27. Kg1 c5 28. Rxh7 Qxe6 29. Nxe6 Rxh7 30. Nc7 Rc8 31. Nxa6 e6 32. Rb5 c4 33. Nc5 Re7 34. f4 Kf7 35. Nb7 Kf6 36. g4 Rb8 37. g5+ Kg7 38. Nd6 Rxb5 39. Nxb5 a6 40. Nd4 Kf7 41. Nf3 Rb7 42. Ne5+ Kg7 43. Nf3 Rb2 44. Nd4 Kf7 45. Kf2 Rxa2 46. Ke2 a5 47. Kd2 Ra1 48. Kc3 Rf1 49. Nc6 Rf3+ 50. Kb2 Rxf4 51. Nxa5 Rf5 52. Nb7 Rxg5 53. Nd6+ Ke7 {0-} 0-1

[Event "45th FIDE Olympiad 2024"]
[Site "Budapest"]
[Date "2024.09.14"]
[Round "4.5"]
[White "Rapport, Richard"]
[Black "Vocaturo, Daniele"]
[Result "1-0"]
[ECO "C54"]
[WhiteElo "2715"]
[BlackElo "2600"]
[Annotator "TA"]
[PlyCount "99"]
[EventDate "2024.09.05"]
[EventType "team-tourn"]
[EventCountry "HUN"]
[SourceTitle "playchess.com"]
[Source "ChessBase"]
[SourceQuality "1"]
[WhiteTeam "Hungary"]
[BlackTeam "Italy"]
[WhiteTeamCountry "HUN"]
[BlackTeamCountry "ITA"]
[TimeControl "40/5400+30:1800+30"]

{[%evp 14,99,21,22,30,-1,0,-5,21,0,7,10,11,0,0,0,0,0,0,0,0,-22,-10,-17,-18,-12,-21,-14,83,91,93,89,81,93,99,110,97,97,112,74,64,75,72,84,91,84,121,130,104,112,109,110,130,130,179,181,274,246,318,328,322,326,320,269,373,337,403,424,424,424,529,533,484,473,1635,1543,1202,1170,12841,8674,29968,29962,29977,29975,29976,29977,29977,29978]} 1. e4 {[%emt 0:01:03]} e5 {[%emt 0:00:33]} 2. Nf3 {[%emt 0:00:18]} Nc6 {[%emt 0:00:35]} 3. Bc4 {[%emt 0:01:06]} Bc5 {[%emt 0:00:42]} 4. h3 {[%emt 0:01:43]} Nf6 {[%emt 0:01:39]} 5. d3 {[%emt 0:00:58]} a6 {[%emt 0:02:50]} 6. c3 {[%emt 0:03:16]} Ba7 {[%emt 0:03:19]} 7. Bb3 {[%emt 0:06:41]} d6 {[%emt 0:02:44]} 8. Nbd2 {[%emt 0:00:40][%cal Bb1d2,Bd2f1,Bf1e3][%mdl 32]} Qe7 {[%emt 0:03:53]} 9. a4 {[%emt 0:03:02]} Be6 {[%emt 0:07:26]} 10. O-O {[%emt 0:04:13]} h6 {[%emt 0:04:37] The position is equal.} 11. Bxe6 {[%emt 0:09:48]} Qxe6 {[%emt 0:03:13]} 12. Re1 {[%emt 0:04:26]} O-O {[%emt 0:02:12]} 13. Nf1 {[%emt 0:04:33]} d5 {[%emt 0:09:10]} 14. exd5 {[%emt 0:04:39]} Qxd5 {[%emt 0:00:55]} 15. Be3 {[%emt 0:01:30]} Rfd8 {[%emt 0:05:01]} 16. Bxa7 {[%emt 0:02:13]} (16. Ng3 {simplifies} Qxd3 17. Qxd3 Rxd3 18. Bxa7 Rxa7 19. Nxe5 Nxe5 20. Rxe5 Ra8 21. Re7) 16... Rxa7 {[%emt 0:00:09]} 17. Ne3 {[%emt 0:03:43]} Qxd3 {[%emt 0:07:24]} 18. Qb3 {[%emt 0:00:18] Rad1 would now be deadly.} Re8 {[%emt 0:06:20]} 19. Rad1 {[%emt 0:01:19]} Qg6 {[%emt 0:00:12]} 20. Nh4 {[%emt 0:08:25]} Qh7 {[%emt 0:02:55]} (20... Qg5 $11 {keeps the balance.} 21. Nhf5 Rc8) 21. Ng4 $16 {[%emt 0:03:11]} Nxg4 {[%emt 0:13:45]} 22. hxg4 {[%emt 0:00:44]} g6 {[%emt 0:05:15]} 23. Rd7 {[%emt 0:02:05]} Qg7 {[%emt 0:00:22]} 24. Nf3 {[%emt 0:05:37] White has more active pieces.} Qf6 {[%emt 0:02:40]} 25. Rxc7 {[%emt 0:12:42]} Re7 {[%emt 0:02:13]} 26. Qb6 {[%emt 0:06:55]} Rxc7 {[%emt 0:03:23]} 27. Qxc7 {[%emt 0:00:02][%cal Rf3e5]} b5 {[%emt 0:00:27] White now steadily converts the win.} 28. Qb6 {[%emt 0:00:02][%cal Oe1e5] Hoping for Rxe5!} bxa4 {[%emt 0:01:17] [#]} 29. Rxe5 $1 {[%emt 0:00:28] Black must now prevent Rc5.} Rd7 {[%emt 0:01:33]} (29... a3 30. Re8+) 30. Re8+ {[%emt 0:01:36]} (30. Qxa6 $2 {is the wrong capture.} Nxe5 31. Qxa4 Rd8 $19 (31... Nxf3+ $2 32. gxf3 Rd2 33. Kg2 $19)) 30... Kg7 {[%emt 0:03:53][%cal Oa4a3]} 31. Qxa6 {[%emt 0:00:13]} Rd1+ {[%emt 0:00:51]} 32. Re1 {[%emt 0:00:09]} Rxe1+ {[%emt 0:00:13]} 33. Nxe1 {[%emt 0:00:04][%mdl 4096] Endgame. KQN-KQN} Qe6 {[%emt 0:00:12] [#]} (33... Qe5 $16 34. Nf3 Qe4) 34. Kf1 $1 $18 {[%emt 0:00:17]} Qd5 {[%emt 0:01:38]} (34... Ne5 $142 35. Qxa4 Nc4) 35. Qxa4 {[%emt 0:00:27]} Ne5 {[%emt 0:00:05]} 36. Qd4 {[%emt 0:05:15]} Qxd4 {[%emt 0:00:07]} 37. cxd4 {[%emt 0:00:01]} Nxg4 {[%emt 0:00:08] KN-KN} 38. Ke2 {[%emt 0:00:20]} Kf8 {[%emt 0:00:19]} 39. Nd3 {[%emt 0:01:19]} Ke7 {[%emt 0:00:29]} 40. Ne5 {[%emt 0:00:23]} Nf6 {[%emt 0:00:04] [#]} 41. Kd3 $1 {[%emt 0:30:32]} Ke6 {[%emt 0:30:42]} 42. b4 {[%emt 0:04:05]} Nd5 {[%emt 0:00:33]} 43. Kc4 {[%emt 0:00:00] aiming for Kc5.} g5 {[%emt 0:00:00] [#]} (43... f6 $142) 44. Nxf7 $1 {[%emt 0:00:00][%mdl 512]} Nb6+ {[%emt 0:00:00]} (44... g4 45. Nxh6) 45. Kb5 {[%emt 0:00:00]} Nc8 {[%emt 0:00:00]} 46. Nxh6 {[%emt 0:00:00] Intending Kc5 and mate.} Kd5 {[%emt 0:00:00]} 47. Nf5 {[%emt 0:00:00] White mates.} g4 {[%emt 0:00:00]} 48. f3 {[%emt 0:00:00]} gxf3 {[%emt 0:00:00]} 49. gxf3 {[%emt 0:00:00]} Na7+ {[%emt 0:00:00]} 50. Ka6 {[%emt 0:00:00] Weighted Error Value: White=0.04 (flawless) /Black=0.35.  Mistake:       	---       	Black=4      Inaccurate:     	White=2     	Black=3      OK:         	White=15    	Black=12     Best:        	White=6     	Black=7      Strong:       	White=2     	---        Brilliant:      	White=2     	---} 1-0

[Event "45th FIDE Olympiad 2024"]
[Site "Budapest"]
[Date "2024.09.14"]
[Round "4.5"]
[White "Stratonowitsch, Andre"]
[Black "Birhanu, Tegegn Mehadem"]
[Result "1/2-1/2"]
[ECO "B55"]
[WhiteElo "2154"]
[BlackElo "2077"]
[PlyCount "63"]
[EventDate "2024.09.05"]
[EventType "team-tourn"]
[EventCountry "HUN"]
[WhiteTeam "Seychelles"]
[BlackTeam "Ethiopia"]
[WhiteTeamCountry "SEY"]
[BlackTeamCountry "ETH"]
[TimeControl "40/5400+30:1800+30"]

1. e4 c5 2. Nf3 d6 3. d4 cxd4 4. Nxd4 Nf6 5. Bb5+ Bd7 6. c4 Nc6 7. Nc3 g6 8. O-O Bg7 9. Nxc6 Bxc6 10. Bxc6+ bxc6 11. Be3 O-O 12. h3 Qc8 13. Rc1 c5 14. Qd2 Qb7 15. Rfe1 Rab8 16. b3 Rfd8 17. Bg5 a6 18. Re2 Rd7 19. Rce1 Ne8 20. Nd5 e6 21. Nc3 Qb4 22. Rc1 Rbb7 23. Be3 Nf6 24. Bh6 Bh8 25. Bf4 Nh5 26. Bg5 Bd4 27. Be3 Bg7 28. Bh6 Bh8 29. Bg5 Bd4 30. Be3 Bg7 31. Bg5 Bd4 32. Be3 1/2-1/2

[Event "45th FIDE Olympiad 2024"]
[Site "Budapest"]
[Date "2024.09.14"]
[Round "4.6"]
[White "Lodici, Lorenzo"]
[Black "Leko, Peter"]
[Result "1-0"]
[ECO "C54"]
[WhiteElo "2556"]
[BlackElo "2666"]
[Annotator "RC"]
[PlyCount "145"]
[EventDate "2024.09.05"]
[EventType "team-tourn"]
[EventCountry "HUN"]
[SourceTitle "playchess.com"]
[Source "ChessBase"]
[SourceQuality "1"]
[WhiteTeam "Italy"]
[BlackTeam "Hungary"]
[WhiteTeamCountry "ITA"]
[BlackTeamCountry "HUN"]
[TimeControl "40/5400+30:1800+30"]

1. e4 {[%emt 0:00:04]} e5 {[%emt 0:00:08]} 2. Nf3 {[%emt 0:00:06]} Nc6 {[%emt 0:00:06]} 3. Bc4 {[%emt 0:00:08]} Bc5 {[%emt 0:02:04]} 4. d3 {[%emt 0:00:10]} Nf6 {[%emt 0:00:12]} 5. Bg5 {[%emt 0:00:10]} h6 {[%emt 0:00:38]} 6. Bh4 {[%emt 0:00:05]} d6 {[%emt 0:00:21]} 7. c3 {[%emt 0:00:47]} a5 {[%emt 0:00:41]} 8. Nbd2 {[%emt 0:03:45]} Ba7 {[%emt 0:01:33]} 9. O-O {[%emt 0:04:27]} g5 {[%emt 0:01:26]} 10. Bg3 {[%emt 0:00:04]} O-O {[%emt 0:00:22]} 11. Re1 {[%emt 0:00:06]} Nh7 {[%emt 0:03:56]} 12. h3 {[%emt 0:00:06]} h5 {[%emt 0:06:38]} 13. d4 {[%emt 0:01:38]} Qf6 {[%emt 0:00:57]} 14. Be2 {[%emt 0:29:08]} Qg7 {[%emt 0:30:51]} 15. dxe5 {[%emt 0:12:25]} dxe5 {[%emt 0:00:16]} 16. Nc4 {[%emt 0:00:16]} Nf6 {[%emt 0:21:37]} 17. Nfd2 {[%emt 0:17:37]} g4 {[%emt 0:16:03]} 18. h4 {[%emt 0:01:56]} Re8 {[%emt 0:00:22]} 19. Qc2 {[%emt 0:03:44]} Qg6 {[%emt 0:02:32]} 20. Bd3 {[%emt 0:03:11]} Be6 {[%emt 0:03:00]} 21. Ne3 {[%emt 0:06:22]} Bxe3 {[%emt 0:00:29]} 22. Rxe3 {[%emt 0:00:10]} Nd7 {[%emt 0:00:36]} 23. f3 {[%emt 0:06:19]} gxf3 {[%emt 0:03:45]} 24. Rxf3 {[%emt 0:00:04]} Nf6 {[%emt 0:00:05]} 25. Nc4 {[%emt 0:06:31]} Ng4 {[%emt 0:00:12]} 26. Raf1 {[%emt 0:00:43]} Rad8 {[%emt 0:00:37]} 27. Qe2 {[%emt 0:01:01]} Qh6 {[%emt 0:02:42]} 28. Be1 {[%emt 0:02:50]} Qg7 {[%emt 0:01:11]} 29. Ne3 {[%emt 0:00:19]} Nxe3 {[%emt 0:00:06]} 30. Qxe3 {[%emt 0:00:06]} Rd6 {[%emt 0:00:48]} 31. Rg3 {[%emt 0:01:05]} Bg4 {[%emt 0:00:01]} 32. Be2 {[%emt 0:00:24]} Rg6 {[%emt 0:00:26]} 33. Bxg4 {[%emt 0:00:05]} Rxg4 {[%emt 0:00:05]} 34. Rxg4 {[%emt 0:00:03]} hxg4 {[%emt 0:00:51]} 35. h5 {[%emt 0:00:41]} Re6 {[%emt 0:00:00]} 36. Bh4 {[%emt 0:00:32]} f6 {[%emt 0:02:05]} 37. Qe2 {[%emt 0:00:50]} Rd6 {[%emt 0:00:16]} 38. Kh2 {[%emt 0:00:28]} Nd8 {[%emt 0:00:37]} 39. Kg3 {[%emt 0:00:33]} Nf7 {[%emt 0:00:09]} 40. Qxg4 {[%emt 0:01:00]} Nh6 {[%emt 0:00:45]} 41. Qxg7+ {[%emt 0:30:05]} Kxg7 {[%emt 0:30:01]} 42. Kf3 {[%emt 0:00:45]} a4 {[%emt 0:00:00]} 43. Rf2 {[%emt 0:00:00]} c5 {[%emt 0:00:00]} 44. g4 {[%emt 0:00:00]} Nf7 {[%emt 0:00:00]} 45. c4 {[%emt 0:00:00]} Nh6 {[%emt 0:00:00]} 46. g5 {[%emt 0:00:00]} fxg5 {[%emt 0:00:00]} 47. Bxg5 {[%emt 0:00:00]} Rd3+ {[%emt 0:00:00]} 48. Ke2 {[%emt 0:00:00]} Rh3 {[%emt 0:01:07]} 49. Bf6+ {[%emt 0:00:00]} Kh7 {[%emt 0:00:19]} 50. Bxe5 {[%emt 0:00:00]} Rxh5 {[%emt 0:00:01]} 51. Bd6 {[%emt 0:02:34]} Kg6 {[%emt 0:00:19]} 52. Rf8 {[%emt 0:00:05]} Nf7 {[%emt 0:00:32]} 53. Bf4 {[%emt 0:00:01]} Rh4 {[%emt 0:01:39]} 54. Kf3 {[%emt 0:00:01]} Rh3+ {[%emt 0:00:19]} 55. Kg4 {[%emt 0:03:57]} Rd3 {[%emt 0:00:18]} 56. Rg8+ {[%emt 0:00:23]} Kf6 {[%emt 0:00:07]} 57. Re8 {[%emt 0:00:02]} Rd4 {[%emt 0:01:52]} 58. e5+ {[%emt 0:00:07]} Kg6 {[%emt 0:00:15]} 59. Re6+ {[%emt 0:00:54]} Kg7 {[%emt 0:00:26]} 60. Kf5 {[%emt 0:00:37]} Kf8 {[%emt 0:00:59]} 61. Rf6 {[%emt 0:00:58]} Ke8 {[%emt 0:00:24]} 62. e6 {[%emt 0:00:27]} Nd6+ {[%emt 0:00:37]} 63. Bxd6 Rxd6 {[%emt 0:00:01]} 64. Rh6 {[%emt 0:00:33]} Rd4 {[%emt 0:00:49]} 65. Rh8+ {[%emt 0:00:14]} Ke7 {[%emt 0:00:01]} 66. Rh7+ {[%emt 0:00:07]} Ke8 {[%emt 0:02:04]} 67. b3 {[%emt 0:00:47]} a3 {[%emt 0:00:51]} 68. Rxb7 {[%emt 0:00:06]} Rd2 {[%emt 0:00:04]} 69. Kf6 {[%emt 0:00:31]} Rf2+ {[%emt 0:00:05]} 70. Ke5 {[%emt 0:00:02]} Rxa2 {[%emt 0:00:06]} 71. Kd6 {[%emt 0:00:21]} Rd2+ {[%emt 0:00:12]} 72. Kxc5 {[%emt 0:00:04]} a2 {[%emt 0:00:10]} 73. Ra7 {[%emt 0:00:03]} 1-0

[Event "45th FIDE Olympiad 2024"]
[Site "Budapest"]
[Date "2024.09.14"]
[Round "4.6"]
[White "Tsige, Addisalem Temesgen"]
[Black "Meier, Peter"]
[Result "1-0"]
[ECO "D00"]
[WhiteElo "2068"]
[BlackElo "2062"]
[PlyCount "115"]
[EventDate "2024.09.05"]
[EventType "team-tourn"]
[EventCountry "HUN"]
[WhiteTeam "Ethiopia"]
[BlackTeam "Seychelles"]
[WhiteTeamCountry "ETH"]
[BlackTeamCountry "SEY"]
[TimeControl "40/5400+30:1800+30"]

1. d4 d5 2. Bf4 Nf6 3. e3 c5 4. c3 Nc6 5. Nd2 cxd4 6. exd4 Bf5 7. Ngf3 e6 8. Qb3 Qc8 9. Nh4 Be4 10. Nxe4 dxe4 11. g3 Be7 12. Ng2 O-O 13. Bg5 Nd5 14. Bxe7 Ncxe7 15. c4 Nf6 16. Ne3 Rd8 17. Rd1 Nc6 18. Qc3 Qc7 19. Bg2 e5 20. d5 Nd4 21. Nc2 Nxd5 22. cxd5 Nxc2+ 23. Kf1 Qxc3 24. bxc3 f5 25. g4 Rac8 26. gxf5 Rxc3 27. Bxe4 Nd4 28. Kg2 Ne2 29. Rhe1 Nf4+ 30. Kf1 Kf7 31. Re3 Rc5 32. d6 Rd7 33. Bxb7 Kf6 34. Be4 g6 35. fxg6 hxg6 36. Bf3 Rc2 37. Bg4 Rd8 38. a3 Rc6 39. d7 Ne6 40. Red3 Ke7 41. Rh3 Rf8 42. Bxe6 Rxe6 43. Rh7+ Kd8 44. Rb1 Rb6 45. Rc1 Rb8 46. Ke2 e4 47. Ke3 a5 48. Kxe4 a4 49. f4 g5 50. Rc8+ Rxc8 51. dxc8=Q+ Kxc8 52. fxg5 Re8+ 53. Kf5 Rf8+ 54. Ke6 Rf3 55. g6 Rf2 56. Rh8+ Kc7 57. g7 Re2+ 58. Kd5 1-0

[Event "45th FIDE Olympiad 2024"]
[Site "Budapest"]
[Date "2024.09.14"]
[Round "4.7"]
[White "Sjugirov, Sanan"]
[Black "Sonis, Francesco"]
[Result "1-0"]
[ECO "B90"]
[WhiteElo "2644"]
[BlackElo "2554"]
[Annotator "TA"]
[PlyCount "41"]
[EventDate "2024.09.05"]
[EventType "team-tourn"]
[EventCountry "HUN"]
[SourceTitle "playchess.com"]
[Source "ChessBase"]
[SourceQuality "1"]
[WhiteTeam "Hungary"]
[BlackTeam "Italy"]
[WhiteTeamCountry "HUN"]
[BlackTeamCountry "ITA"]
[TimeControl "40/5400+30:1800+30"]

{[%evp 11,41,18,20,25,19,11,22,23,31,20,60,39,114,102,87,47,52,43,75,52,37,28,70,31,81,29,135,98,89,77,764,766]} 1. e4 {[%emt 0:00:06]} c5 {[%emt 0:00:06]} 2. Nf3 {[%emt 0:00:30]} d6 {[%emt 0:00:08]} 3. d4 {[%emt 0:00:15]} cxd4 {[%emt 0:00:07]} 4. Nxd4 {[%emt 0:00:06]} Nf6 {[%emt 0:00:06]} 5. Nc3 {[%emt 0:00:18]} a6 {[%emt 0:00:06]} 6. Bd3 {[%emt 0:00:14]} g6 {[%emt 0:02:40]} 7. f3 {[%emt 0:00:21]} Nc6 {[%emt 0:00:42]} 8. Be3 {[%emt 0:00:47]} Bg7 {[%emt 0:08:51]} 9. Qd2 {[%emt 0:01:10] The position is equal.} O-O {[%emt 0:03:03]} 10. O-O-O {[%emt 0:00:33]} Bd7 {[%emt 0:16:21]} 11. Kb1 {[%emt 0:30:21]} b5 {[%emt 0:01:09]} ({Black should play} 11... Rb8 $14) 12. Nxc6 $1 $16 {[%emt 0:06:42]} Bxc6 {[%emt 0:00:05]} 13. Bh6 {[%emt 0:00:06] White is more active.} b4 {[%emt 0:15:54]} 14. Ne2 {[%emt 0:00:47]} Qa5 {[%emt 0:00:04]} 15. h4 {[%emt 0:02:40][%cal Bh2h4,Bh4h5][%mdl 32] Black must now prevent h5!} Bxh6 {[%emt 0:07:37]} 16. Qxh6 {[%emt 0:00:29][%cal Oh4h5] Strongly threatening h5!} Kh8 {[%emt 0:00:18]} 17. g4 {[%emt 0:08:00]} Qc5 {[%emt 0:13:32] [#] Wards off Nd4} (17... Qe5 $14) 18. Ng3 {[%emt 0:12:24]} (18. Nc1 $1 $16) 18... Bb5 {[%emt 0:05:42]} (18... Qe5 $11 {keeps the balance.} 19. Nf1 a5) 19. Qd2 {[%emt 0:07:53]} Nd7 {[%emt 0:05:21]} 20. h5 {[%emt 0:05:08] Threatens to win with Qh6.} Ne5 $2 {[%emt 0:08:13][%mdl 8192] [#]} (20... g5 $16) 21. Qh6 $1 {[%emt 0:02:38] Weighted Error Value: White=0.17 (very precise) /Black=0.34.  Loses game:     	---       	Black=1      Mistake:       	White=1     	Black=3      Inaccurate:     	White=2     	Black=3      OK:         	White=4     	Black=3      Best:        	---       	Black=1      Strong:       	White=2     	---} 1-0

[Event "45th FIDE Olympiad 2024"]
[Site "Budapest"]
[Date "2024.09.14"]
[Round "4.7"]
[White "Pillay, Ragul"]
[Black "Kebede, Yoseph Kifle"]
[Result "0-1"]
[ECO "D31"]
[WhiteElo "1633"]
[BlackElo "2037"]
[PlyCount "100"]
[EventDate "2024.09.05"]
[EventType "team-tourn"]
[EventCountry "HUN"]
[WhiteTeam "Seychelles"]
[BlackTeam "Ethiopia"]
[WhiteTeamCountry "SEY"]
[BlackTeamCountry "ETH"]
[TimeControl "40/5400+30:1800+30"]

1. d4 d5 2. c4 e6 3. Nc3 a6 4. a4 Nc6 5. Nf3 dxc4 6. e4 Na5 7. Ne5 Nb3 8. Rb1 Qxd4 9. Qxd4 Nxd4 10. Bxc4 Ne7 11. O-O Nec6 12. Bf4 Bd6 13. Nxc6 Nxc6 14. Bxd6 cxd6 15. Rfd1 Ke7 16. b4 Ne5 17. Be2 g5 18. Rd2 b6 19. Rc1 Rd8 20. Nd1 Bb7 21. f3 Rdc8 22. Rb1 Rc7 23. Ne3 Rac8 24. Kf2 Rc1 25. Rbb2 Ra1 26. a5 b5 27. Rd4 Nc6 28. Rd3 Ne5 29. Rd4 Nc6 30. Rd3 Ra4 31. Nc2 Ne5 32. Rd4 d5 33. exd5 Bxd5 34. Ne3 Bb7 35. Bf1 Rd8 36. Rxd8 Kxd8 37. Nc2 Bd5 38. h3 Ra2 39. Rxa2 Bxa2 40. Nd4 Kc7 41. Ke3 Nc6 42. Nxc6 Kxc6 43. Kd4 Kd6 44. Bd3 h5 45. Be2 h4 46. Bd3 f5 47. Ke3 Ke5 48. Bc2 Bc4 49. Kf2 f4 50. Be4 Bd5 {0-} 0-1

[Event "45th FIDE Olympiad 2024"]
[Site "Budapest"]
[Date "2024.09.14"]
[Round "4.8"]
[White "Brunello, Sabino"]
[Black "Gledura, Benjamin"]
[Result "1/2-1/2"]
[ECO "D45"]
[WhiteElo "2511"]
[BlackElo "2628"]
[Annotator "TA"]
[PlyCount "67"]
[EventDate "2024.09.05"]
[EventType "team-tourn"]
[EventCountry "HUN"]
[SourceTitle "playchess.com"]
[Source "ChessBase"]
[SourceQuality "1"]
[WhiteTeam "Italy"]
[BlackTeam "Hungary"]
[WhiteTeamCountry "ITA"]
[BlackTeamCountry "HUN"]
[TimeControl "40/5400+30:1800+30"]

{[%evp 23,67,0,0,-7,10,7,8,17,18,10,27,0,0,0,0,0,0,0,0,0,4,12,6,10,14,14,14,11,11,16,25,24,24,25,52,52,54,43,43,30,30,30,30,30,30,30]} 1. Nf3 {[%emt 0:00:03]} d5 {[%emt 0:00:26]} 2. d4 {[%emt 0:00:24]} Nf6 {[%emt 0:00:09]} 3. c4 {[%emt 0:00:05]} e6 {[%emt 0:00:35]} 4. Nc3 {[%emt 0:00:17]} c6 {[%emt 0:00:40]} 5. e3 {[%emt 0:00:17]} Nbd7 {[%emt 0:00:19]} 6. Qc2 {[%emt 0:00:10]} Bd6 {[%emt 0:00:42]} 7. b3 {[%emt 0:01:46]} O-O {[%emt 0:02:03]} 8. Be2 {[%emt 0:00:08]} b6 {[%emt 0:01:02]} 9. O-O {[%emt 0:00:09]} Bb7 {[%emt 0:00:16]} 10. Bb2 {[%emt 0:00:10]} Qe7 {[%emt 0:00:14]} 11. Rad1 {[%emt 0:03:27]} Rad8 {[%emt 0:03:04]} 12. Rfe1 {[%emt 0:01:56]} Rfe8 {[%emt 0:00:15]} 13. Bf1 {[%emt 0:02:24]} h6 {[%emt 0:00:34]} 14. e4 {[%emt 0:06:07]} Nxe4 {[%emt 0:01:11]} 15. Nxe4 {[%emt 0:00:07] The position is equal.} dxe4 {[%emt 0:00:06]} 16. Qxe4 {[%emt 0:10:41]} Qf8 {[%emt 0:00:21]} 17. Ne5 {[%emt 0:24:39]} Nxe5 {[%emt 0:26:50]} 18. dxe5 {[%emt 0:01:32]} Bb4 {[%emt 0:00:35]} 19. Bd3 {[%emt 0:00:57]} Rxd3 {[%emt 0:03:25]} 20. Rxd3 {[%emt 0:00:12]} Bxe1 {[%emt 0:00:09]} 21. Qxe1 {[%emt 0:00:03]} Rd8 {[%emt 0:00:14] Prevents Rd7} 22. Qd1 {[%emt 0:00:43]} Rxd3 {[%emt 0:02:46]} 23. Qxd3 $11 {[%emt 0:00:02][%mdl 4096] Endgame. KQB-KQB} Qe7 {[%emt 0:03:58]} 24. Qd6 {[%emt 0:06:37]} Qxd6 {[%emt 0:00:38]} 25. exd6 {[%emt 0:00:02] [#] Strongly threatening d7. KB-KB} Bc8 {[%emt 0:00:09]} 26. b4 {[%emt 0:01:37]} f6 {[%emt 0:00:34]} 27. f4 {[%emt 0:00:05]} Kf7 {[%emt 0:00:17]} 28. Kf2 {[%emt 0:00:09]} Ba6 {[%emt 0:03:12]} 29. c5 {[%emt 0:00:12]} b5 {[%emt 0:01:07]} 30. g4 {[%emt 0:04:11]} Bc8 {[%emt 0:00:27]} 31. h4 {[%emt 0:00:37]} e5 {[%emt 0:03:28] White has an edge.} 32. fxe5 {[%emt 0:00:30]} Bxg4 {[%emt 0:00:13]} 33. exf6 {[%emt 0:00:11]} gxf6 {[%emt 0:00:07]} 34. Kg3 {[%emt 0:00:22] Weighted Error Value: White=0.04 (flawless) /Black=0.04 (flawless) .  Inaccurate:     	---       	Black=1      OK:         	White=7     	Black=13     Best:        	White=1     	---} 1/2-1/2

[Event "45th FIDE Olympiad 2024"]
[Site "Budapest"]
[Date "2024.09.14"]
[Round "4.8"]
[White "Shiferaw, Yalemzewde Mekonnen"]
[Black "Pillay, Harish"]
[Result "1-0"]
[ECO "A54"]
[WhiteElo "2025"]
[BlackElo "1561"]
[PlyCount "81"]
[EventDate "2024.09.05"]
[EventType "team-tourn"]
[EventCountry "HUN"]
[WhiteTeam "Ethiopia"]
[BlackTeam "Seychelles"]
[WhiteTeamCountry "ETH"]
[BlackTeamCountry "SEY"]
[TimeControl "40/5400+30:1800+30"]

1. c4 e5 2. g3 Nf6 3. Bg2 Nc6 4. Nc3 Be7 5. Nf3 O-O 6. O-O d6 7. d4 Bf5 8. b3 Qc8 9. Re1 Bh3 10. Bh1 h6 11. Bb2 Re8 12. Nd5 e4 13. Nd2 Bd8 14. Nxf6+ Bxf6 15. Nxe4 Qf5 16. Nxf6+ Qxf6 17. Qd2 Qg6 18. b4 Rab8 19. e4 f5 20. b5 Ne7 21. e5 dxe5 22. Rxe5 Kh8 23. Rae1 Ng8 24. Rxe8 Rxe8 25. Bxb7 Rxe1+ 26. Qxe1 f4 27. Bg2 Bxg2 28. Kxg2 fxg3 29. hxg3 Qc2 30. Qc3 Qe4+ 31. Qf3 Qc2 32. Bc3 Qxa2 33. Qd3 Qa3 34. d5 Nf6 35. Qf3 Qe7 36. Bd4 Qe4 37. Bxf6 Qxf3+ 38. Kxf3 gxf6 39. c5 Kg7 40. d6 cxd6 41. b6 1-0